bitfinex-derivatives/quotes_SOLF0:USTF0_20241009
["timestamp","ask_amount","ask_price","bid_price","bid_amount"]
[1728487554091,3.4978,143.06,143.02,3.4986]
[1728487554498,3.4978,143.06,143.03,3.4983]
[1728487555197,3.498,143.05,143.01,3.4986]
[1728487555502,3.498,143.05,142.99,6.26]
[1728487555942,3.498,143.05,143.0,3.4989]
[1728487556208,3.498,143.05,142.99,6.26]
[1728487556397,3.4976,143.06,143.03,3.4983]
[1728487556595,16.79,143.07,143.03,3.4983]
[1728487557577,3.4978,143.06,143.03,3.4983]
[1728487557877,3.4978,143.06,142.97,0.12502]
[1728487557878,16.79,143.04,142.97,0.12502]
[1728487558080,3.4989,143.01,142.98,3.4995]
[1728487558578,3.4989,143.01,142.99,3.4993]
[1728487558873,16.79,143.02,142.99,3.4993]
[1728487559396,20.2887,143.02,143.0,3.4991]
[1728487559601,16.79,143.02,143.0,3.4991]
[1728487559792,16.79,143.02,142.97,0.12502]
[1728487560079,16.79,143.02,142.99,3.4991]
[1728487560378,3.4985,143.03,142.99,3.4991]
[1728487560581,3.4985,143.03,142.97,0.12502]
[1728487560582,6.26,143.06,142.97,0.12502]
[1728487560779,16.79,143.05,143.0,3.4991]
[1728487561290,23.07,143.05,143.0,3.4991]
[1728487561668,3.4981,143.04,143.01,3.4986]
[1728487562078,3.4981,143.04,142.97,0.12502]
[1728487562079,3.52334019,143.04,142.97,16.91502]
[1728487562283,3.4985,143.03,142.99,3.4993]
[1728487562484,16.79,143.05,142.97,16.91502]
[1728487562686,6.28,143.06,142.99,16.79]
[1728487562883,3.4975,143.07,143.04,3.4979]
[1728487563281,3.4975,143.07,142.99,16.79]
[1728487563786,9.053,143.08,143.0,16.79]
[1728487563976,2.773,143.08,143.0,20.29724389]
[1728487564382,2.773,143.08,143.06,3.4975]
[1728487564596,0.12502,143.09,143.02,23.07]
[1728487564889,0.12502,143.09,143.04,16.79]
[1728487565095,0.12502,143.09,143.08,3.4971]
[1728487567390,0.12502,143.09,143.04,6.26]
[1728487567685,0.12502,143.09,143.02,16.79]
[1728487567686,3.4979,143.05,143.01,6.26]
[1728487567890,2.6917,143.08,143.01,6.26]
[1728487568387,6.1889,143.08,143.04,3.498]
[1728487568689,19.4817,143.08,143.01,6.26]
[1728487568934,3.498,143.05,143.01,9.7587]
[1728487569092,16.79,143.06,142.98,1.4505]
[1728487569584,3.4982,143.04,143.0,3.4989]
[1728487569905,16.79,143.04,142.97,0.12502]
[1728487570185,16.79,143.02,142.97,0.12502]
[1728487570487,3.4991,143.01,142.97,3.62472]
[1728487570882,2.7629,143.02,142.97,0.12502]
[1728487571093,3.4991,143.0,142.97,0.12502]
[1728487571596,6.26,143.01,142.97,0.12502]
[1728487572291,3.4992,143.0,142.97,0.12502]
[1728487572787,6.26,143.01,142.97,0.12502]
[1728487572987,9.7589,143.01,142.97,0.12502]
[1728487573793,9.7589,143.01,142.98,3.4994]
[1728487574388,3.4992,143.0,142.97,0.12502]
[1728487574987,3.4992,143.0,142.97,3.62472]
[1728487575390,6.26,143.01,142.97,0.12502]
[1728487575696,6.26,143.01,142.98,3.4995]
[1728487575881,6.26,143.01,142.97,0.12502]
[1728487576225,3.4991,143.0,142.97,0.12502]
[1728487576491,6.26,143.01,142.97,0.12502]
[1728487576693,3.4996,142.98,142.97,0.12502]
[1728487577588,26.89,142.98,142.91,0.12502]
[1728487577991,30.37173041,142.98,142.91,0.12502]
[1728487578184,3.5003,142.96,142.93,3.5007]
[1728487578392,26.89,142.98,142.91,0.12502]
[1728487578791,26.89,142.98,142.94,3.5003]
[1728487579192,26.89,142.98,142.91,0.12502]
[1728487579993,3.5,142.97,142.93,3.5008]
[1728487580197,26.89,142.98,142.93,3.5008]
[1728487580391,26.89,142.98,142.91,0.12502]
[1728487580691,26.89,142.98,142.94,3.5005]
[1728487580991,3.5,142.97,142.94,3.5004]
[1728487581194,26.89,142.98,142.94,3.5004]
[1728487581432,26.89,142.98,142.91,0.12502]
[1728487581698,3.4999,142.97,142.91,0.12502]
[1728487582101,3.4999,142.97,142.94,3.5003]
[1728487582302,26.89,142.98,142.91,0.12502]
[1728487582503,3.5001,142.96,142.91,0.12502]
[1728487582898,3.5,142.97,142.92,3.5009]
[1728487583203,26.89,142.98,142.91,0.12502]
[1728487583599,3.5001,142.96,142.91,0.12502]
[1728487584115,3.5001,142.96,142.92,3.5009]
[1728487584717,4.871,142.96,142.92,3.5009]
[1728487585208,4.871,142.96,142.93,3.5008]
[1728487585711,4.871,142.96,142.91,0.12502]
[1728487585712,1.3709,142.96,142.91,0.12502]
[1728487585912,28.2609,142.96,142.91,0.12502]
[1728487586120,26.89,142.92,142.85,0.12502]
[1728487586315,6.14,142.91,142.85,0.12502]
[1728487586715,9.63961407,142.91,142.85,0.12502]
[1728487587016,6.14,142.91,142.85,0.12502]
[1728487587319,6.14,142.92,142.85,0.12502]
[1728487587517,26.89,142.94,142.85,0.12502]
[1728487587709,6.14,142.93,142.85,0.12502]
[1728487588216,3.5007,142.94,142.85,0.12502]
[1728487588411,6.14,142.93,142.85,0.12502]
[1728487588709,1.3244,142.95,142.85,27.01502]
[1728487588917,7.5109,142.96,142.86,2.7727]
[1728487589114,7.5109,142.96,142.87,7.5331]
[1728487589712,1.3709,142.96,142.87,7.5331]
[1728487592011,4.871,142.96,142.87,7.5331]
[1728487592210,4.871,142.96,142.93,3.5007]
[1728487592410,1.3709,142.96,142.87,24.3531]
[1728487592626,0.12502,142.97,142.91,16.82]
[1728487593217,0.12502,142.97,142.96,3.5001]
[1728487595022,0.12502,142.97,142.92,1.3698]
[1728487595320,0.12502,142.97,142.95,3.5002]
[1728487596624,0.12502,142.97,142.94,3.5005]
[1728487597229,0.12502,142.97,142.95,3.5002]
[1728487597913,0.12502,142.97,142.9,3.49306887]
[1728487598231,0.12502,142.97,142.88,6.14]
[1728487598232,16.82,142.96,142.88,6.14]
[1728487598618,16.82,142.96,142.93,3.5006]
[1728487599116,16.82,142.96,142.88,6.14]
[1728487599720,16.82,142.96,142.89,16.82]
[1728487599914,0.12502,142.97,142.89,16.82]
[1728487600326,0.12502,142.97,142.95,3.5002]
[1728487602718,0.12502,142.97,142.96,3.5001]
[1728487603129,0.12502,142.97,142.89,18.1813]
[1728487603325,0.12502,142.97,142.95,3.5001]
[1728487604123,0.12502,142.97,142.89,18.1813]
[1728487604729,20.3201,142.96,142.93,3.5006]
[1728487605043,16.82,142.96,142.89,1.3613]
[1728487605325,16.82,142.94,142.88,6.14]
[1728487605546,16.82,142.92,142.87,1.3931]
[1728487605727,16.82,142.92,142.85,6.26502]
[1728487606134,3.5013,142.91,142.87,3.5022]
[1728487606448,16.82,142.88,142.85,0.12502]
[1728487606634,20.3221,142.88,142.85,0.12502]
[1728487606839,16.82,142.86,142.85,0.12502]
[1728487607524,16.82,142.86,142.81,3.5037]
[1728487607728,6.14,142.87,142.79,0.12502]
[1728487607729,16.82,142.83,142.79,0.12502]
[1728487608027,16.82,142.85,142.79,0.12502]
[1728487608425,16.82,142.85,142.82,3.5033]
[1728487608659,16.82,142.85,142.79,0.12502]
[1728487609128,16.82,142.87,142.79,0.12502]
[1728487609328,16.82,142.89,142.8,22.96]
[1728487609536,16.82,142.89,142.8,24.3543]
[1728487609731,16.82,142.89,142.87,3.5021]
[1728487610140,16.82,142.89,142.86,3.5025]
[1728487611037,7.4715,142.9,142.81,1.4495]
[1728487611243,16.82,142.86,142.8,6.14]
[1728487611941,16.82,142.86,142.84,3.5029]
[1728487612238,16.82,142.88,142.79,0.12502]
[1728487612936,16.82,142.88,142.85,3.5027]
[1728487613428,16.82,142.88,142.81,6.08]
[1728487613735,16.82,142.88,142.84,3.5029]
[1728487614148,16.82,142.86,142.81,6.08]
[1728487614636,16.82,142.86,142.84,3.503]
[1728487616240,16.82,142.88,142.86,3.5025]
[1728487616947,20.322,142.88,142.85,3.5026]
[1728487619452,20.322,142.88,142.86,3.5025]
[1728487619939,16.82,142.88,142.86,3.5025]
[1728487620153,22.9,142.89,142.87,3.5021]
[1728487620543,16.82,142.89,142.87,3.5021]
[1728487621249,16.82,142.89,142.8,16.82]
[1728487621442,16.82,142.87,142.85,3.5027]
[1728487622642,3.5026,142.86,142.8,6.08]
[1728487623045,16.82,142.83,142.79,0.12502]
[1728487623245,3.54276335,142.82,142.79,0.12502]
[1728487623450,16.82,142.81,142.79,0.12502]
[1728487623645,16.82,142.83,142.82,3.5035]
[1728487624043,29.13610321,142.85,142.79,0.12502]
[1728487624253,9.53800321,142.85,142.84,3.503]
[1728487624451,3.45800321,142.85,142.84,3.503]
[1728487625059,22.9,142.87,142.81,3.5036]
[1728487625350,22.9,142.87,142.79,23.02502]
[1728487625547,22.9,142.87,142.81,3.5036]
[1728487625747,25.6405,142.89,142.79,23.02502]
[1728487626061,24.25,142.89,142.79,23.02502]
[1728487626294,24.25,142.89,142.86,3.5024]
[1728487628152,27.7518,142.89,142.86,3.5024]
[1728487629255,27.7518,142.89,142.8,18.1692]
[1728487629556,6.08,142.89,142.8,18.1692]
[1728487629857,6.08,142.89,142.87,3.5022]
[1728487631568,4.833,142.9,142.87,3.5022]
[1728487631756,10.913,142.9,142.87,3.5022]
[1728487631953,7.4115,142.9,142.87,3.5022]
[1728487632661,7.4115,142.9,142.81,1.4238]
[1728487632662,16.82,142.89,142.81,1.4238]
[1728487633160,3.5022,142.88,142.84,3.5028]
[1728487633359,3.5022,142.88,142.81,1.4238]
[1728487634063,3.5022,142.88,142.85,3.5026]
[1728487634764,16.82,142.89,142.81,1.4238]
[1728487634965,20.3218,142.89,142.86,3.5024]
[1728487635357,16.82,142.89,142.8,1.3492]
[1728487635662,3.5023,142.87,142.8,1.3492]
[1728487635856,16.82,142.89,142.8,1.3492]
[1728487636056,3.5021,142.88,142.84,3.5028]
[1728487636660,20.3219,142.89,142.85,3.5025]
[1728487636857,7.4115,142.9,142.81,16.82]
[1728487637059,7.4115,142.9,142.82,1.3197]
[1728487637259,7.4115,142.9,142.88,3.5019]
[1728487637458,7.4115,142.9,142.82,1.3197]
[1728487638263,10.9131,142.9,142.84,3.5029]
[1728487638453,16.82,142.89,142.82,1.3197]
[1728487638858,20.3219,142.89,142.82,1.3197]
[1728487639063,16.82,142.87,142.82,1.3197]
[1728487639655,16.82,142.87,142.85,3.5026]
[1728487639914,16.82,142.87,142.82,1.3197]
[1728487639915,16.82,142.89,142.82,1.3197]
[1728487640259,16.82,142.89,142.87,3.5022]
[1728487640960,20.3218,142.89,142.86,3.5024]
[1728487641361,20.3218,142.89,142.82,1.3197]
[1728487641559,20.3218,142.89,142.85,3.5025]
[1728487643375,3.5021,142.88,142.85,3.5025]
[1728487643571,16.82,142.89,142.87,3.5022]
[1728487644379,16.82,142.89,142.86,3.5024]
[1728487644674,16.82,142.89,142.82,1.3197]
[1728487645180,16.82,142.89,142.82,4.74793976]
[1728487645375,16.82,142.89,142.87,3.5021]
[1728487646374,16.82,142.89,142.86,3.5024]
[1728487646570,16.82,142.87,142.8,7.3292]
[1728487646977,16.82,142.89,142.8,24.1492]
[1728487648073,16.82,142.87,142.83,3.5031]
[1728487648375,16.82,142.85,142.79,78.16792004]
[1728487648565,3.43443378,142.84,142.79,78.16792004]
[1728487648871,16.82,142.83,142.79,78.16792004]
[1728487649269,16.82,142.83,142.81,3.5036]
[1728487649868,16.82,142.83,142.79,0.12502]
[1728487651281,16.82,142.83,142.82,3.5035]
[1728487651984,26.32794732,142.85,142.82,3.5035]
[1728487652392,22.8,142.85,142.79,0.12502]
[1728487652679,22.8,142.85,142.83,3.5031]
[1728487652877,3.5025,142.87,142.79,0.12502]
[1728487652878,16.82,142.87,142.79,0.12502]
[1728487653183,5.98,142.86,142.79,0.12502]
[1728487653677,5.98,142.86,142.85,3.5028]
[1728487653981,5.98,142.88,142.82,16.82]
[1728487654172,7.3115,142.9,142.82,16.82]
[1728487654375,7.3115,142.9,142.89,3.5018]
[1728487654789,7.3115,142.9,142.82,16.82]
[1728487654984,7.3115,142.9,142.87,3.5022]
[1728487656372,7.3115,142.9,142.88,3.502]
[1728487657583,10.8131,142.9,142.87,3.5021]
[1728487657788,7.3115,142.9,142.81,4.12]
[1728487658282,1.3315,142.9,142.87,3.5021]
[1728487658679,1.3315,142.9,142.88,3.5019]
[1728487658985,4.833,142.9,142.82,3.4286926]
[1728487659184,1.3315,142.9,142.82,3.4286926]
[1728487659484,1.3315,142.9,142.87,3.5021]
[1728487659684,1.3315,142.9,142.82,3.4286926]
[1728487659884,1.3315,142.9,142.88,3.502]
[1728487660474,1.3315,142.9,142.89,3.5018]
[1728487661489,22.92502,142.91,142.9,3.5015]
[1728487662188,0.12502,142.91,142.9,3.5015]
[1728487666594,10.87502,142.91,142.9,3.5015]
[1728487673898,0.12502,142.91,142.9,3.5015]
[1728487676202,10.87502,142.91,142.84,9.44603544]
[1728487676497,10.75,142.87,142.82,5.76]
[1728487676896,10.75,142.87,142.82,16.51]
[1728487677095,10.75,142.87,142.86,3.5025]
[1728487677708,10.75,142.87,142.81,12.1051]
[1728487678097,10.75,142.87,142.84,3.5029]
[1728487678312,10.75,142.87,142.81,12.1051]
[1728487678503,10.75,142.86,142.81,12.1051]
[1728487678805,14.2525,142.86,142.81,12.1051]
[1728487679399,10.75,142.86,142.81,12.1051]
[1728487679907,10.75,142.87,142.85,3.5026]
[1728487680305,10.75,142.87,142.82,10.75]
[1728487680507,16.51,142.89,142.88,3.502]
[1728487680910,16.51,142.89,142.83,10.75]
[1728487681304,16.51,142.89,142.87,3.5023]
[1728487681807,5.76,142.89,142.85,10.75]
[1728487682001,0.12502,142.91,142.86,10.75]
[1728487682413,0.12502,142.91,142.87,3.5021]
[1728487682709,0.12502,142.91,142.86,10.75]
[1728487684101,0.12502,142.91,142.9,3.5015]
[1728487685509,0.12502,142.91,142.9,14.2515]
[1728487686510,0.12502,142.91,142.9,3.5015]
[1728487687303,10.87502,142.91,142.86,10.75]
[1728487687612,10.87502,142.91,142.85,20.0764735]
[1728487687806,14.37632,142.91,142.85,16.51]
[1728487688002,10.87502,142.91,142.85,16.51]
[1728487688306,10.87502,142.91,142.85,19.99935659]
[1728487688509,0.12502,142.91,142.85,9.24935659]
[1728487688809,0.12502,142.91,142.9,3.5015]
[1728487693512,0.12502,142.97,142.96,3.5001]
[1728487695822,0.12502,142.97,142.96,20.3001]
[1728487696713,0.12502,142.97,142.96,3.5001]
[1728487701023,0.12502,142.97,142.95,3.5002]
[1728487701427,0.12502,142.97,142.93,5.76]
[1728487701728,0.12502,142.97,142.94,3.5004]
[1728487705421,0.12502,142.97,142.95,3.5001]
[1728487705610,0.12502,142.97,142.92,22.56]
[1728487705817,0.12502,142.97,142.93,3.54718354]
[1728487706524,0.12502,142.97,142.95,3.5001]
[1728487707124,0.12502,142.97,142.9,18.238]
[1728487707424,3.62502,142.97,142.93,3.5007]
[1728487707815,3.50307998,142.96,142.9,1.438]
[1728487708018,3.50307998,142.96,142.91,5.7]
[1728487708722,3.5006,142.94,142.91,9.2012]
[1728487709224,3.5004,142.95,142.91,3.5012]
[1728487710716,3.50307998,142.96,142.89,5.7]
[1728487710924,3.5007,142.94,142.9,3.5015]
[1728487711319,16.8,142.94,142.86,1.4059]
[1728487711523,16.8,142.94,142.87,5.7]
[1728487711929,16.8,142.94,142.86,1.4059]
[1728487712230,16.8,142.9,142.85,0.12502]
[1728487712620,16.8,142.88,142.85,0.12502]
[1728487713029,3.5025,142.86,142.85,0.12502]
[1728487713224,20.3025,142.86,142.85,0.12502]
[1728487713426,20.3025,142.86,142.81,5.7]
[1728487713427,16.8,142.86,142.81,5.7]
[1728487713729,16.8,142.86,142.79,0.12502]
[1728487713936,16.8,142.84,142.79,0.12502]
[1728487714125,10.53206519,142.87,142.79,0.12502]
[1728487714324,16.8,142.82,142.79,0.12502]
[1728487714630,10.53206519,142.87,142.73,0.12502]
[1728487714631,33.6,142.8,142.73,0.12502]
[1728487714827,16.8,142.77,142.73,0.12502]
[1728487715026,20.3049,142.77,142.73,0.12502]
[1728487715222,16.8,142.77,142.73,0.12502]
[1728487715427,3.52689661,142.76,142.73,0.12502]
[1728487715631,7.03199661,142.76,142.73,0.12502]
[1728487715932,16.8,142.77,142.73,0.12502]
[1728487716131,23.9021,142.79,142.73,0.12502]
[1728487716324,16.8,142.77,142.73,0.12502]
[1728487716526,7.1021,142.79,142.73,0.12502]
[1728487716838,16.8,142.77,142.73,0.12502]
[1728487717338,3.505,142.76,142.73,0.12502]
[1728487717629,16.8,142.77,142.73,0.12502]
[1728487719125,7.1021,142.79,142.73,0.12502]
[1728487719736,7.1021,142.79,142.75,3.505]
[1728487720337,7.1021,142.79,142.73,0.12502]
[1728487720833,10.6063,142.79,142.74,3.5052]
[1728487721024,7.1021,142.79,142.73,0.12502]
[1728487721437,10.6063,142.79,142.73,0.12502]
[1728487722138,10.6063,142.79,142.74,3.5053]
[1728487722339,7.1021,142.79,142.73,0.12502]
[1728487722526,7.1042,142.81,142.73,16.92502]
[1728487722837,3.4519103,142.82,142.75,16.8]
[1728487723140,7.0726,142.83,142.75,16.8]
[1728487723433,10.59250406,142.83,142.75,20.28520622]
[1728487724228,4.89250406,142.83,142.75,20.28520622]
[1728487724831,1.317,142.84,142.77,16.8]
[1728487725136,4.83164681,142.84,142.78,5.7]
[1728487725640,4.83164681,142.84,142.81,3.5037]
[1728487725836,0.12502,142.85,142.78,5.7]
[1728487727630,0.12502,142.85,142.79,16.8]
[1728487728034,0.12502,142.85,142.77,20.24089163]
[1728487728244,3.64369169,142.85,142.78,22.5]
[1728487728439,0.12502,142.85,142.82,3.5034]
[1728487728637,20.31012224,142.84,142.74,4.1387]
[1728487728943,16.8,142.82,142.75,5.7]
[1728487729140,16.8,142.82,142.77,3.5045]
[1728487729344,16.8,142.82,142.75,5.7]
[1728487729345,3.5039,142.81,142.75,5.7]
[1728487729644,3.5039,142.81,142.77,3.5046]
[1728487730232,20.3037,142.82,142.77,3.5046]
[1728487730543,16.8,142.82,142.77,3.5046]
[1728487731238,3.5038,142.81,142.76,3.5048]
[1728487731438,16.8,142.8,142.75,5.7]
[1728487731839,20.3042,142.8,142.75,3.5051]
[1728487732048,16.8,142.8,142.74,5.7]
[1728487732347,20.3046,142.78,142.74,3.5053]
[1728487733746,16.8,142.78,142.75,3.5051]
[1728487733964,5.7,142.81,142.73,0.12502]
[1728487733965,16.8,142.8,142.73,0.12502]
[1728487734460,16.8,142.8,142.77,3.5045]
[1728487734860,16.8,142.8,142.73,0.12502]
[1728487735955,20.3041,142.8,142.76,3.5049]
[1728487737554,16.8,142.8,142.73,0.12502]
[1728487737857,16.8,142.8,142.77,3.5047]
[1728487738264,16.8,142.8,142.78,3.5044]
[1728487738557,23.12385109,142.82,142.73,0.12502]
[1728487739258,16.8,142.8,142.73,0.12502]
[1728487739562,20.3045,142.78,142.74,3.5053]
[1728487740151,3.5047,142.77,142.73,3.63052]
[1728487740348,16.8,142.78,142.73,0.12502]
[1728487740752,16.8,142.76,142.73,0.12502]
[1728487741267,20.3054,142.74,142.73,0.12502]
[1728487741465,16.8,142.74,142.73,0.12502]
[1728487742257,16.8,142.74,142.67,5.90502]
[1728487742562,21.6614,142.74,142.71,3.5062]
[1728487744458,21.6614,142.74,142.72,3.5059]
[1728487744659,3.5057,142.73,142.67,5.90502]
[1728487745260,3.5057,142.73,142.7,3.5063]
[1728487745960,3.5057,142.73,142.67,5.90502]
[1728487745961,21.6614,142.74,142.71,3.5061]
[1728487746465,20.306,142.72,142.69,3.5065]
[1728487746655,16.8,142.72,142.67,0.12502]
[1728487747161,16.8,142.7,142.67,0.12502]
[1728487747762,5.78,142.71,142.67,0.12502]
[1728487747956,16.8,142.72,142.67,0.12502]
[1728487748165,16.8,142.72,142.69,3.5065]
[1728487748366,16.8,142.72,142.67,0.12502]
[1728487748565,4.8286,142.73,142.67,0.12502]
[1728487748965,1.3227,142.73,142.67,0.12502]
[1728487749161,27.4414,142.74,142.67,0.12502]
[1728487749365,23.9358,142.74,142.67,0.12502]
[1728487749564,30.89583856,142.74,142.67,0.12502]
[1728487749769,27.39023856,142.74,142.67,0.12502]
[1728487749969,23.9358,142.74,142.71,3.5061]
[1728487750271,27.48703298,142.74,142.71,3.5061]
[1728487750471,5.78,142.74,142.67,5.90502]
[1728487750671,5.78,142.74,142.73,3.5057]
[1728487750872,18.2302,142.75,142.73,3.5057]
[1728487751268,18.2302,142.75,142.69,3.5066]
[1728487751469,18.2302,142.75,142.67,5.90502]
[1728487751761,21.7355,142.75,142.67,5.90502]
[1728487751971,18.2302,142.75,142.73,3.5057]
[1728487752162,18.2302,142.75,142.67,5.90502]
[1728487752869,21.7354,142.75,142.67,5.90502]
[1728487753172,21.7354,142.75,142.71,3.5061]
[1728487753770,18.2302,142.75,142.67,5.90502]
[1728487753975,18.2302,142.75,142.72,3.5058]
[1728487754175,18.2302,142.75,142.67,5.90502]
[1728487754669,1.4302,142.75,142.68,16.8]
[1728487754870,1.4302,142.75,142.74,3.5054]
[1728487755173,1.4302,142.75,142.68,16.8]
[1728487755174,16.8,142.77,142.68,20.32975838]
[1728487755569,7.0894,142.78,142.7,16.8]
[1728487755763,1.3094,142.78,142.71,5.78]
[1728487755968,1.3094,142.78,142.76,3.5048]
[1728487756177,4.8139,142.78,142.71,5.78]
[1728487756671,4.8139,142.78,142.73,3.5057]
[1728487756872,3.5047,142.77,142.71,5.78]
[1728487757875,4.814,142.78,142.74,3.5053]
[1728487758276,4.814,142.78,142.71,5.78]
[1728487759172,5.90502,142.79,142.72,16.8]
[1728487759675,0.12502,142.79,142.74,16.8]
[1728487759874,0.12502,142.79,142.75,5.78]
[1728487760079,0.12502,142.79,142.78,3.5045]
[1728487761970,0.12502,142.79,142.77,3.5047]
[1728487762377,0.12502,142.79,142.72,19.6431]
[1728487762677,0.12502,142.79,142.71,1.4518]
[1728487762678,0.12502,142.79,142.75,3.505]
[1728487763470,3.62932,142.79,142.75,3.505]
[1728487763675,0.12502,142.79,142.77,3.5047]
[1728487764279,0.12502,142.79,142.73,5.78]
[1728487764968,0.12502,142.79,142.77,3.5046]
[1728487766880,0.12502,142.79,142.73,5.78]
[1728487767470,0.12502,142.79,142.77,3.5045]
[1728487768278,0.12502,142.79,142.73,5.78]
[1728487768484,0.12502,142.79,142.78,3.5045]
[1728487770681,1.47982,142.85,142.84,3.503]
[1728487770682,0.12502,142.85,142.84,3.503]
[1728487774888,0.12502,142.85,142.84,9.223]
[1728487775589,0.12502,142.91,142.84,5.72]
[1728487775792,0.12502,142.91,142.85,16.8]
[1728487776293,0.12502,142.91,142.9,3.5015]
[1728487778299,0.12502,142.91,142.9,9.2215]
[1728487779985,0.12502,142.91,142.87,16.8]
[1728487780195,0.12502,142.91,142.88,5.72]
[1728487780689,0.12502,142.91,142.9,3.5015]
[1728487782296,0.12502,142.91,142.88,3.5019]
[1728487782697,0.12502,142.91,142.87,5.72]
[1728487783001,0.12502,142.91,142.88,3.502]
[1728487783404,0.12502,142.91,142.9,3.5015]
[1728487790201,0.12502,142.97,142.95,3.5001]
[1728487790705,0.12502,142.97,142.92,5.72]
[1728487791010,0.12502,142.97,142.95,3.5001]
[1728487793306,0.12502,142.97,142.96,3.5001]
[1728487796911,0.12502,142.97,142.95,3.5001]
[1728487797112,0.12502,142.97,142.92,5.72]
[1728487798215,3.62492,142.97,142.91,5.68]
[1728487798513,0.12502,142.97,142.92,3.5008]
[1728487798704,16.8,142.96,142.9,1.332]
[1728487798904,16.8,142.94,142.89,5.68]
[1728487799116,16.8,142.94,142.88,5.68]
[1728487799708,5.80502,142.97,142.88,25.90097813]
[1728487799916,9.30492,142.97,142.88,25.90097813]
[1728487800115,5.80502,142.97,142.88,25.90097813]
[1728487800317,9.30482,142.97,142.94,3.5004]
[1728487800518,5.80502,142.97,142.9,16.8]
[1728487800716,0.12502,142.97,142.95,3.5001]
[1728487801020,0.12502,142.97,142.92,22.48]
[1728487801919,0.12502,142.97,142.95,3.5002]
[1728487802120,0.12502,142.97,142.92,5.68]
[1728487802319,3.62492,142.97,142.92,5.68]
[1728487802712,0.12502,142.97,142.9,1.4173]
[1728487802914,0.12502,142.97,142.91,5.68]
[1728487803323,3.62492,142.97,142.91,5.68]
[1728487803720,0.12502,142.97,142.91,5.68]
[1728487805525,0.12502,142.97,142.95,3.5001]
[1728487806924,0.12502,142.97,142.96,3.5001]
[1728487807430,3.5002,142.96,142.94,3.5005]
[1728487809021,3.62492,142.97,142.91,5.68]
[1728487809634,0.12502,142.97,142.91,5.68]
[1728487809824,0.12502,142.97,142.89,1.4295]
[1728487810024,16.8,142.96,142.91,3.5011]
[1728487810224,3.501,142.92,142.87,5.68]
[1728487810428,16.8,142.96,142.87,5.68]
[1728487810621,16.8,142.96,142.92,3.5009]
[1728487810828,16.8,142.96,142.87,7.0804]
[1728487811227,16.8,142.96,142.9,3.5014]
[1728487811228,3.5009,142.93,142.9,3.5014]
[1728487811436,16.8,142.94,142.9,3.5014]
[1728487811735,16.8,142.94,142.89,3.5017]
[1728487811925,3.5013,142.91,142.87,7.0804]
[1728487812133,3.5013,142.91,142.85,0.12502]
[1728487812338,3.5013,142.91,142.86,5.68]
[1728487812533,16.8,142.92,142.85,0.12502]
[1728487812744,16.8,142.9,142.86,3.5024]
[1728487812936,16.8,142.9,142.85,0.12502]